bitfinex-derivatives/quotes_BTCF0:USTF0_20260127
["timestamp","ask_amount","ask_price","bid_price","bid_amount"]
[1769555964589,0.00258838,89375.0,89363.0,0.00961909]
[1769555964791,0.00258838,89375.0,89363.0,0.01048191]
[1769555966090,0.01194751,89375.0,89363.0,0.01048191]
[1769555966478,0.02314951,89375.0,89363.0,0.00961909]
[1769555967191,0.011203,89374.0,89363.0,0.00961909]
[1769555967391,0.00258838,89373.0,89363.0,0.00961909]
[1769555967787,0.00935913,89372.0,89358.0,0.13392427]
[1769555967992,0.011203,89369.0,89357.0,0.13392427]
[1769555968190,0.00935913,89367.0,89356.0,0.13392427]
[1769555968493,0.00935913,89363.0,89353.0,0.13405379]
[1769555968694,0.00935913,89361.0,89353.0,0.12319102]
[1769555968894,0.01194751,89360.0,89347.0,0.68310464]
[1769555969197,0.011205,89357.0,89348.0,0.00086282]
[1769555969498,0.00258838,89356.0,89347.0,0.10084]
[1769555969689,0.00258838,89356.0,89345.0,0.00961067]
[1769555970189,0.011205,89354.0,89341.0,0.00961067]
[1769555970384,0.00258838,89353.0,89341.0,0.00961067]
[1769555971195,0.01379338,89353.0,89341.0,0.00961067]
[1769555971496,0.00935913,89352.0,89340.0,0.41492]
[1769555971794,0.00258838,89351.0,89340.0,0.41492]
[1769555974194,0.00258838,89351.0,89341.0,0.00961067]
[1769555974388,0.00935913,89356.0,89342.0,0.00961067]
[1769555974588,0.00935913,89356.0,89345.0,0.011206]
[1769555974788,0.01194751,89356.0,89345.0,0.011206]
[1769555975191,0.01194751,89356.0,89344.0,0.00961067]
[1769555975495,0.01194751,89356.0,89344.0,0.02081667]
[1769555977897,0.01194751,89356.0,89344.0,0.00961067]
[1769555980796,0.02315251,89356.0,89344.0,0.00961067]
[1769555983099,0.011205,89355.0,89344.0,0.00961067]
[1769555983298,0.00258838,89354.0,89344.0,0.00961067]
[1769555984001,0.00258838,89354.0,89350.0,0.08929273]
[1769555986996,0.00258838,89354.0,89343.0,0.16766464]
[1769555986997,0.011205,89353.0,89343.0,0.16766464]
[1769555987196,0.00258838,89352.0,89342.0,0.17887064]
[1769555987395,0.01379338,89352.0,89342.0,0.16766464]
[1769555987794,0.01379338,89352.0,89341.0,0.16766464]
[1769555988802,0.01379338,89352.0,89340.0,0.17887164]
[1769555989303,0.01379338,89352.0,89341.0,0.16766464]
[1769555989896,0.00258838,89352.0,89341.0,0.16766464]
[1769555990096,0.01194751,89352.0,89340.0,0.16766464]
[1769555990300,0.02056413,89351.0,89340.0,0.16766464]
[1769555990500,0.00258838,89350.0,89340.0,0.16766464]
[1769555991000,0.00258838,89350.0,89339.0,0.00961067]
[1769555991401,0.00258838,89350.0,89339.0,0.17727531]
[1769555992305,0.00258838,89350.0,89341.0,0.00961067]
[1769555992611,0.00935913,89355.0,89342.0,0.00961067]
[1769555992905,0.00258838,89355.0,89344.0,0.00961067]
[1769555993304,0.10084,89356.0,89344.0,0.00961067]
[1769555993507,0.011204,89360.0,89344.0,0.00961067]
[1769555993703,0.10342838,89359.0,89344.0,0.00961067]
[1769555993898,0.011204,89358.0,89344.0,0.00961067]
[1769555994102,0.00258838,89357.0,89344.0,0.00961067]
[1769555994402,0.00258838,89357.0,89345.0,0.00990341]
[1769555994601,0.10084,89356.0,89345.0,0.00990341]
[1769555995528,0.10342838,89356.0,89345.0,0.00990341]
[1769555996126,0.011203,89368.0,89347.0,0.00990341]
[1769555996328,0.10794292,89367.0,89351.0,0.00990341]
[1769555996626,0.10535454,89366.0,89351.0,0.00990341]
[1769555997024,0.00258838,89365.0,89351.0,0.00990341]
[1769555997619,0.011203,89369.0,89351.0,0.00990341]
[1769555997926,0.10798109,89368.0,89351.0,0.00990341]
[1769555998120,0.10539271,89367.0,89351.0,0.00990341]
[1769555998428,0.10800304,89366.0,89351.0,0.00990341]
[1769555998626,0.00258838,89366.0,89351.0,0.00990341]
[1769556000827,0.01379138,89366.0,89351.0,0.00990341]
[1769556001220,0.00258838,89366.0,89351.0,0.00990341]
[1769556001828,0.00980671,89364.0,89351.0,0.00990341]
[1769556002027,0.00980671,89362.0,89346.0,0.00990341]
[1769556002230,0.01239509,89361.0,89346.0,0.00990341]
[1769556002430,0.01239509,89361.0,89345.0,0.16766464]
[1769556002431,0.00980671,89360.0,89345.0,0.16766464]
[1769556002731,0.00980671,89358.0,89344.0,0.16766464]
[1769556002930,0.00258838,89357.0,89344.0,0.16766464]
[1769556003730,0.00258838,89357.0,89348.0,0.00990341]
[1769556007331,0.10084,89359.0,89348.0,0.00990341]
[1769556007534,0.10342838,89359.0,89348.0,0.00990341]
[1769556009437,0.10084,89359.0,89348.0,0.00990341]
[1769556009731,0.0718282,89359.0,89351.0,0.011205]
[1769556010132,0.0718282,89359.0,89348.0,0.011206]
[1769556010338,0.07441658,89359.0,89348.0,0.011206]
[1769556011035,0.07441658,89359.0,89345.0,0.011206]
[1769556012236,0.07441658,89359.0,89338.0,0.2349868]
[1769556012732,0.07441658,89359.0,89348.0,0.011206]
[1769556013437,0.07441658,89359.0,89340.0,0.011207]
[1769556014241,0.07441658,89359.0,89351.0,0.011205]
[1769556014441,0.02130054,89372.0,89353.0,0.011205]
[1769556014635,0.12472892,89371.0,89353.0,0.011205]
[1769556014944,0.01009754,89369.0,89353.0,0.011205]
[1769556015247,0.00258838,89368.0,89353.0,0.011205]
[1769556015542,0.01268592,89368.0,89353.0,0.011205]
[1769556016036,0.02388892,89368.0,89352.0,0.011205]
[1769556016237,0.12472892,89368.0,89352.0,0.011205]
[1769556016639,0.01003356,89367.0,89352.0,0.011205]
[1769556016947,0.00258838,89366.0,89352.0,0.011205]
[1769556018141,0.00258838,89366.0,89350.0,0.011205]
[1769556019441,0.00258838,89366.0,89352.0,0.011205]
[1769556019749,0.10084,89378.0,89361.0,0.011204]
[1769556019949,0.00258838,89376.0,89361.0,0.011204]
[1769556020336,0.01262121,89376.0,89361.0,0.011204]
[1769556022746,0.01262121,89376.0,89353.0,0.10084]
[1769556022947,0.01262121,89376.0,89363.0,0.011204]
[1769556023940,0.01262121,89376.0,89362.0,0.011204]
[1769556028944,0.01262121,89376.0,89363.0,0.011204]
[1769556030249,0.01035759,89375.0,89353.0,0.10084]
[1769556030554,0.00258838,89374.0,89361.0,0.011204]
[1769556030850,0.00258838,89374.0,89359.0,0.011204]
[1769556031251,0.00258838,89374.0,89353.0,0.10084]
[1769556031752,0.00258838,89374.0,89360.0,0.011204]
[1769556033653,0.00258838,89374.0,89353.0,0.112045]
[1769556034052,0.00258838,89374.0,89362.0,0.011204]
[1769556034539,0.00258838,89374.0,89353.0,0.112045]
[1769556034540,0.00258838,89374.0,89353.0,0.10084]
[1769556034743,0.00258838,89374.0,89365.0,0.011204]
[1769556036158,0.00258838,89374.0,89362.0,0.011204]
[1769556037659,0.00258838,89374.0,89363.0,0.011204]
[1769556047665,0.00258838,89374.0,89354.0,0.2349868]
[1769556047861,0.00258838,89374.0,89354.0,0.10084]
[1769556048159,0.00258838,89374.0,89360.0,0.011204]
[1769556048870,0.00258838,89374.0,89354.0,0.2349868]
[1769556050068,0.00258838,89374.0,89363.0,0.011204]
[1769556054571,0.00258838,89374.0,89356.0,0.1341468]
[1769556055371,0.00258838,89374.0,89360.0,0.011204]
[1769556056977,0.00258838,89374.0,89361.0,0.011204]
[1769556060282,0.00258838,89374.0,89357.0,0.1341468]
[1769556060484,0.10084,89378.0,89360.0,0.11414401]
[1769556060783,0.00258838,89377.0,89367.0,0.011203]
[1769556060982,0.00258838,89377.0,89367.0,0.12534701]
[1769556061285,0.00258838,89377.0,89367.0,0.011203]
[1769556061478,0.10084,89382.0,89367.0,0.011203]
[1769556061687,0.2234612,89400.0,89370.0,0.11414401]
[1769556061876,0.11462838,89396.0,89370.0,0.11414401]
[1769556062077,0.0112,89394.0,89376.0,0.011202]
[1769556062281,0.00258838,89393.0,89376.0,0.011202]
[1769556062483,0.00258838,89393.0,89370.0,0.11414401]
[1769556063484,0.00258838,89393.0,89377.0,0.011202]
[1769556065481,0.00258838,89393.0,89375.0,0.011202]
[1769556066190,0.0112,89392.0,89375.0,0.011202]
[1769556066386,0.00258838,89391.0,89375.0,0.011202]
[1769556068591,0.01378838,89391.0,89372.0,0.011203]
[1769556068891,0.00258838,89391.0,89372.0,0.011203]
[1769556069490,0.0112,89390.0,89372.0,0.011203]
[1769556069691,0.00258838,89389.0,89372.0,0.011203]
[1769556070485,0.00258838,89389.0,89370.0,0.11414401]
[1769556070486,0.00258838,89389.0,89371.0,0.011203]
[1769556070693,0.00258838,89389.0,89374.0,0.011202]
[1769556076394,0.01378938,89389.0,89374.0,0.011202]
[1769556083211,0.01068105,89385.0,89372.0,0.112003]
[1769556083405,0.00258838,89384.0,89372.0,0.112003]
[1769556083911,0.00258838,89384.0,89372.0,0.1008]
[1769556084112,0.01327555,89384.0,89372.0,0.1008]
[1769556085512,0.01327555,89384.0,89372.0,0.112003]
[1769556085902,0.01327555,89384.0,89367.0,0.08939708]
[1769556085903,0.011201,89383.0,89367.0,0.08939708]
[1769556086215,0.00258838,89382.0,89367.0,0.10060008]
[1769556086408,0.00258838,89382.0,89368.0,0.011203]
[1769556088010,0.00258838,89382.0,89368.0,0.08939708]
[1769556088011,0.011202,89381.0,89368.0,0.08939708]
[1769556088307,0.02190096,89378.0,89367.0,0.08939708]
[1769556088610,0.01328734,89377.0,89359.0,0.1341468]
[1769556088813,0.01069896,89371.0,89358.0,0.1341468]
[1769556089000,0.00258838,89370.0,89357.0,0.1341468]
[1769556089201,0.00258838,89370.0,89355.0,0.011205]
[1769556089502,0.00258838,89370.0,89357.0,0.011205]
[1769556089896,0.00258838,89370.0,89354.0,0.1008]
[1769556090099,0.00258838,89370.0,89355.0,0.011205]
[1769556090901,0.00258838,89370.0,89354.0,0.1008]
[1769556091712,0.00258838,89370.0,89362.0,0.011204]
[1769556092612,0.01060349,89390.0,89360.0,0.11414401]
[1769556092907,0.00258838,89382.0,89370.0,0.12534701]
[1769556093110,0.011201,89387.0,89370.0,0.12534701]
[1769556093305,0.00258838,89381.0,89370.0,0.12534701]
[1769556094907,0.00258838,89381.0,89366.0,0.011203]
[1769556095314,0.00258838,89381.0,89368.0,0.011203]
[1769556096515,0.00258838,89381.0,89370.0,0.011203]
[1769556097509,0.00258838,89381.0,89368.0,0.011203]
[1769556097712,0.00258838,89381.0,89369.0,0.011203]
[1769556098219,0.00258838,89381.0,89366.0,0.011203]
[1769556101022,0.0206628,89418.0,89362.0,0.1341468]
[1769556101213,0.00258838,89410.0,89408.0,0.11414401]
[1769556101523,0.1008,89410.0,89407.0,0.011198]
[1769556101718,0.00782713,89433.0,89407.0,0.01114318]
[1769556101923,0.39842838,89432.0,89417.0,0.011197]
[1769556102120,0.39842838,89432.0,89402.0,0.011199]
[1769556102121,0.41248,89431.0,89420.0,0.11414401]
[1769556102417,0.1008,89430.0,89420.0,0.11414401]
[1769556102621,0.00258838,89429.0,89420.0,0.11414401]
[1769556102825,0.00258838,89429.0,89410.0,0.11414401]
[1769556103323,0.00258838,89429.0,89414.0,0.011197]
[1769556103523,0.00258838,89429.0,89411.0,0.011198]
[1769556104024,0.00258838,89429.0,89419.0,0.11414401]
[1769556105523,0.00258838,89429.0,89413.0,0.011197]
[1769556105713,0.00258838,89429.0,89410.0,0.12534201]
[1769556106122,0.00258838,89429.0,89410.0,0.011198]
[1769556106326,0.01070019,89428.0,89407.0,0.011198]
[1769556106531,0.00258838,89427.0,89410.0,0.011198]
[1769556107227,0.01328857,89427.0,89409.0,0.011198]
[1769556107926,0.01328857,89427.0,89400.0,0.17661973]
[1769556107927,0.01157222,89426.0,89401.0,0.011199]
[1769556108124,0.02276822,89422.0,89403.0,0.011199]
[1769556108323,0.00258838,89421.0,89403.0,0.011199]
[1769556108630,0.0141606,89421.0,89403.0,0.011199]
[1769556109126,0.0141606,89421.0,89405.0,0.011198]
[1769556109422,0.0141606,89421.0,89402.0,0.011199]
[1769556110023,0.00258838,89421.0,89401.0,0.01116724]
[1769556110212,0.00258838,89421.0,89405.0,0.011198]
[1769556112429,0.1008,89420.0,89405.0,0.011198]
[1769556112630,0.00258838,89419.0,89405.0,0.011198]
[1769556112832,0.00258838,89419.0,89402.0,0.011199]
[1769556113133,0.00258838,89419.0,89404.0,0.011199]
[1769556113427,0.00258838,89419.0,89402.0,0.011199]
[1769556114425,0.00258838,89419.0,89401.0,0.01125159]
[1769556114426,0.01457065,89419.0,89401.0,0.01125159]
[1769556114730,0.01457065,89419.0,89400.0,0.11414401]
[1769556114930,0.01457065,89419.0,89401.0,0.011199]
[1769556115819,0.01457065,89419.0,89392.0,0.1341468]
[1769556116118,0.01199199,89411.0,89394.0,0.0112]
[1769556116319,0.01458037,89410.0,89395.0,0.15345089]
[1769556116518,0.01458037,89410.0,89394.0,0.0112]
[1769556116519,0.10076,89409.0,89394.0,0.0112]
[1769556116719,0.00258838,89408.0,89394.0,0.0112]
[1769556118228,0.00258838,89408.0,89390.0,0.01149833]
[1769556118428,0.00258838,89408.0,89386.0,0.1617488]
[1769556118630,0.00258838,89408.0,89387.0,0.15351786]
[1769556118831,0.00258838,89408.0,89393.0,0.0112]
[1769556119721,0.00258838,89408.0,89395.0,0.0112]
[1769556120330,0.00258838,89408.0,89398.0,0.011199]
[1769556120531,0.00258838,89408.0,89391.0,0.0112]
[1769556120732,0.00258838,89408.0,89398.0,0.011199]
[1769556121033,0.00258838,89408.0,89390.0,0.01117318]
[1769556121334,0.00258838,89408.0,89391.0,0.15359896]
[1769556121529,0.00258838,89408.0,89394.0,0.0112]
[1769556122130,0.00258838,89408.0,89391.0,0.0112]
[1769556122336,0.00258838,89408.0,89392.0,0.15368514]
[1769556122633,0.01197114,89407.0,89389.0,0.01133031]
[1769556122833,0.01455952,89406.0,89390.0,0.16488695]
[1769556123023,0.01455952,89406.0,89390.0,0.0112]
[1769556123426,0.01455952,89406.0,89392.0,0.0112]
[1769556123625,0.01455952,89406.0,89386.0,0.10076]
[1769556123826,0.01455952,89406.0,89393.0,0.0112]
[1769556124038,0.00258838,89406.0,89393.0,0.0112]
[1769556124436,0.00258838,89406.0,89389.0,0.0112]
[1769556124742,0.10076,89410.0,89401.0,0.011199]
[1769556124920,0.10076,89411.0,89401.0,0.011199]
[1769556125124,0.10334838,89411.0,89401.0,0.011199]
[1769556125931,0.01201635,89467.0,89402.0,0.11443769]
[1769556126236,0.11363917,89466.0,89422.0,0.011196]
[1769556126441,0.01201635,89465.0,89423.0,0.10334838]
[1769556126633,0.01201635,89463.0,89443.0,0.011194]
[1769556126832,0.00086282,89462.0,89449.0,0.011193]
[1769556127138,0.10076,89461.0,89450.0,0.00258838]
[1769556127337,0.00086282,89460.0,89444.0,0.011194]
[1769556127637,0.10076,89459.0,89448.0,0.011193]
[1769556127837,0.00258838,89458.0,89448.0,0.011193]
[1769556128037,0.00258838,89458.0,89442.0,0.011194]
[1769556128637,0.00258838,89458.0,89446.0,0.011193]
[1769556132741,0.10076,89459.0,89450.0,0.011193]
[1769556132940,0.0008632,89458.0,89451.0,0.002588]
[1769556135740,0.0008632,89458.0,89452.0,0.011193]
[1769556135941,0.10076,89459.0,89452.0,0.013781]
[1769556136343,0.01197661,89465.0,89452.0,0.013781]
[1769556136539,0.4149032,89464.0,89452.0,0.013781]
[1769556136836,0.4149032,89464.0,89452.0,0.002588]
[1769556137030,0.4149032,89464.0,89437.0,0.06170019]
[1769556137031,0.01197758,89463.0,89437.0,0.06170019]
[1769556137232,0.01197758,89463.0,89435.0,0.10076]
[1769556137233,0.01197758,89461.0,89442.0,0.011194]
[1769556137530,0.01284078,89460.0,89443.0,0.002588]
[1769556138041,0.01284078,89460.0,89437.0,0.011194]
[1769556138235,0.01284078,89460.0,89439.0,0.011194]
[1769556138435,0.01193301,89459.0,89440.0,0.002588]
[1769556138742,0.01193301,89457.0,89440.0,0.002588]
[1769556138942,0.01193301,89455.0,89440.0,0.002588]
[1769556139245,0.01279621,89454.0,89440.0,0.013782]
[1769556139738,0.01279621,89454.0,89442.0,0.011194]
[1769556139940,0.01279621,89454.0,89442.0,0.013782]
[1769556140940,0.01279621,89454.0,89444.0,0.011194]
[1769556141143,0.41404,89464.0,89445.0,0.002588]
[1769556141331,0.0008632,89453.0,89445.0,0.002588]
[1769556141537,0.41404,89464.0,89448.0,0.011193]
[1769556141744,0.0008632,89463.0,89450.0,0.011193]
[1769556141948,0.10072,89462.0,89451.0,0.002588]
[1769556142143,0.0008632,89462.0,89452.0,0.011193]
[1769556142335,0.0008632,89462.0,89452.0,0.013781]
[1769556144035,0.01175231,89475.0,89452.0,0.002588]
[1769556144234,0.4151032,89474.0,89461.0,0.011191]
[1769556144438,0.4151032,89474.0,89462.0,0.002588]
[1769556145349,0.4144,89473.0,89462.0,0.002588]
[1769556145544,0.0008632,89472.0,89462.0,0.002588]
[1769556145745,0.0008632,89472.0,89455.0,0.011192]
[1769556145945,0.0008632,89472.0,89457.0,0.011192]
[1769556145946,0.01247186,89472.0,89457.0,0.011192]
[1769556147046,0.0008632,89472.0,89447.0,0.10072]
[1769556147255,0.00258838,89472.0,89465.0,0.011191]
[1769556147548,0.40712866,89482.0,89467.0,0.011191]
[1769556147549,0.01160866,89481.0,89467.0,0.011191]
[1769556147747,0.01419704,89481.0,89467.0,0.011191]
[1769556148349,0.01419704,89481.0,89464.0,0.011191]
[1769556148842,0.011616,89479.0,89464.0,0.011191]
[1769556149050,0.00258838,89478.0,89464.0,0.011191]
[1769556150347,0.00258838,89478.0,89466.0,0.011191]
[1769556150546,0.41496,89477.0,89466.0,0.011191]
[1769556150751,0.00258838,89476.0,89466.0,0.011191]
[1769556152052,0.41778838,89476.0,89466.0,0.011191]
[1769556152951,0.41778838,89476.0,89463.0,0.011191]
[1769556153252,0.41778838,89476.0,89460.0,0.011192]
[1769556154048,0.01141437,89475.0,89455.0,0.06131719]
[1769556154351,0.01400275,89474.0,89447.0,0.10072]
[1769556154746,0.01400275,89474.0,89448.0,0.1117718]
[1769556154946,0.01400275,89474.0,89455.0,0.011192]
[1769556156057,0.01400275,89474.0,89447.0,0.16359374]
[1769556156449,0.32888275,89474.0,89448.0,0.11177617]
[1769556156854,0.32888275,89474.0,89459.0,0.011192]
[1769556157057,0.01145021,89473.0,89459.0,0.011192]
[1769556157243,0.00258838,89472.0,89459.0,0.011192]
[1769556157447,0.01403859,89472.0,89459.0,0.011192]
[1769556160158,0.01150662,89469.0,89447.0,0.16359374]
[1769556160455,0.01150662,89467.0,89455.0,0.011192]
[1769556160656,0.00258838,89466.0,89455.0,0.011192]
[1769556160857,0.00258838,89466.0,89453.0,0.011193]
[1769556161056,0.014095,89466.0,89449.0,0.011193]
[1769556161257,0.014095,89466.0,89447.0,0.16359374]
[1769556161643,0.00258838,89466.0,89447.0,0.16359374]
[1769556161855,0.00258838,89466.0,89455.0,0.011192]
[1769556162657,0.00258838,89466.0,89447.0,0.17478674]
[1769556163554,0.01158043,89476.0,89447.0,0.16359374]
[1769556163759,0.00258838,89473.0,89462.0,0.011191]
[1769556168254,0.01411132,89473.0,89460.0,0.011192]
[1769556169056,0.01411132,89473.0,89450.0,0.011193]
[1769556170262,0.01411132,89473.0,89461.0,0.011191]
[1769556172965,0.00258838,89473.0,89461.0,0.011191]
[1769556173171,0.00258838,89473.0,89464.0,0.011191]
[1769556173366,0.00258838,89473.0,89461.0,0.011191]
[1769556173762,0.01398405,89473.0,89461.0,0.011191]
[1769556174271,0.01398405,89473.0,89458.0,0.011192]
[1769556174470,0.01398405,89473.0,89460.0,0.011192]
[1769556175671,0.01398405,89473.0,89460.0,0.12507847]
[1769556176871,0.33114405,89473.0,89460.0,0.12507847]
[1769556179585,0.33114405,89473.0,89460.0,0.11388647]
[1769556179879,0.33114405,89473.0,89463.0,0.011191]
[1769556180766,0.33114405,89473.0,89460.0,0.11388647]
[1769556180966,0.01137172,89484.0,89469.0,0.01119]
[1769556181167,0.0139601,89483.0,89471.0,0.01119]
[1769556181474,0.318,89482.0,89471.0,0.01119]
[1769556181671,0.0113413,89480.0,89468.0,0.011191]
[1769556181869,0.00258838,89479.0,89468.0,0.011191]
[1769556182269,0.01392968,89479.0,89468.0,0.011191]
[1769556183277,0.01392968,89479.0,89466.0,0.011191]
[1769556183865,0.01392968,89479.0,89463.0,0.011191]
[1769556184278,0.01392968,89479.0,89465.0,0.011191]
[1769556184769,0.01123902,89477.0,89451.0,0.10072]
[1769556185085,0.01123902,89475.0,89451.0,0.10072]
[1769556185279,0.01123902,89473.0,89451.0,0.10072]
[1769556185469,0.01123902,89471.0,89451.0,0.10072]
[1769556185778,0.00258838,89470.0,89451.0,0.10072]
[1769556188381,0.00258838,89470.0,89458.0,0.011192]
[1769556188980,0.00258838,89470.0,89460.0,0.011192]
[1769556189379,0.00258838,89470.0,89451.0,0.10072]
[1769556189585,0.01379897,89470.0,89451.0,0.10072]
[1769556190189,0.01379897,89470.0,89456.0,0.011192]
[1769556190887,0.01379897,89470.0,89460.0,0.011192]
[1769556191385,0.01379897,89470.0,89458.0,0.011192]
[1769556196493,0.01379897,89470.0,89458.0,0.00474325]
[1769556198893,0.01379897,89470.0,89456.0,0.011192]
[1769556201491,0.01379897,89470.0,89454.0,0.011192]
[1769556203796,0.01379897,89470.0,89451.0,0.10072]
[1769556204090,0.01379897,89470.0,89455.0,0.011192]
[1769556204897,0.01379897,89470.0,89457.0,0.011192]
[1769556208301,0.01124937,89469.0,89451.0,0.10072]
[1769556208493,0.01124937,89465.0,89452.0,0.011193]
[1769556208694,0.01124937,89463.0,89447.0,0.07406674]
[1769556208894,0.01124937,89461.0,89447.0,0.06287374]
[1769556209093,0.01383775,89460.0,89445.0,0.10072]
[1769556209598,0.01383775,89460.0,89445.0,0.16119463]
[1769556209904,0.01130091,89454.0,89438.0,0.011194]
[1769556210200,0.01130091,89452.0,89438.0,0.011194]
[1769556210498,0.01130091,89450.0,89437.0,0.06253605]
[1769556210700,0.00258838,89449.0,89436.0,0.011195]
[1769556210898,0.00258838,89449.0,89435.0,0.01149109]
[1769556210899,0.01388929,89449.0,89433.0,0.011195]
[1769556211203,0.01388929,89449.0,89435.0,0.011195]
[1769556211386,0.01388929,89449.0,89433.0,0.01113098]
[1769556211587,0.01388929,89449.0,89437.0,0.011195]
[1769556214198,0.01388929,89449.0,89430.0,0.11388647]
[1769556215904,0.02508229,89449.0,89433.0,0.011195]
[1769556216402,0.01088516,89448.0,89433.0,0.011195]
[1769556216603,0.00258838,89447.0,89433.0,0.011195]
[1769556217303,0.00258838,89447.0,89437.0,0.011195]
[1769556217604,0.00258838,89447.0,89434.0,0.011195]
[1769556217999,0.01088404,89446.0,89434.0,0.011195]
[1769556218194,0.00258838,89445.0,89434.0,0.011195]
[1769556219302,0.00258838,89445.0,89430.0,0.11388647]
[1769556221905,0.00258838,89445.0,89435.0,0.011195]
[1769556224708,0.00258838,89445.0,89430.0,0.11388647]
[1769556224908,0.00258838,89445.0,89435.0,0.011195]
[1769556226001,0.00258838,89445.0,89433.0,0.011195]
[1769556227206,0.10072,89449.0,89435.0,0.011195]
[1769556227403,0.01090279,89451.0,89435.0,0.011195]
[1769556227404,0.00258838,89448.0,89435.0,0.011195]
[1769556228905,0.00258838,89448.0,89430.0,0.11388647]
[1769556228906,0.00258838,89448.0,89436.0,0.011195]
[1769556231517,0.00258838,89448.0,89434.0,0.011195]
[1769556232206,0.00258838,89448.0,89435.0,0.011195]
[1769556233909,0.00258838,89448.0,89430.0,0.11388647]
[1769556235126,0.00258838,89448.0,89434.0,0.011195]
[1769556236008,0.00258838,89448.0,89430.0,0.11388647]
[1769556236206,0.01102545,89474.0,89453.0,0.011192]
[1769556236408,0.00258838,89469.0,89455.0,0.011192]
[1769556236611,0.00258838,89469.0,89457.0,0.011192]
[1769556236815,0.00258838,89469.0,89454.0,0.011192]
[1769556237007,0.00258838,89469.0,89456.0,0.011192]
[1769556237207,0.00258838,89469.0,89453.0,0.011192]
[1769556237407,0.00258838,89469.0,89457.0,0.011192]
[1769556239315,0.01119,89474.0,89457.0,0.011192]
[1769556239511,0.00258838,89474.0,89449.0,0.011193]
[1769556239906,0.00258838,89474.0,89459.0,0.011192]
[1769556240117,0.00258838,89474.0,89456.0,0.011192]
[1769556240615,0.00258838,89474.0,89458.0,0.011192]
[1769556242818,0.01123638,89473.0,89449.0,0.0622076]
[1769556243116,0.01123638,89473.0,89446.0,0.10072]
[1769556243117,0.00258838,89472.0,89457.0,0.011192]
[1769556243518,0.01123638,89471.0,89457.0,0.011192]
[1769556243720,0.01123638,89469.0,89457.0,0.011192]
[1769556243920,0.00258838,89468.0,89457.0,0.011192]
[1769556244818,0.01380259,89468.0,89453.0,0.011193]
[1769556245123,0.01380259,89468.0,89457.0,0.011192]
[1769556245720,0.01380259,89468.0,89454.0,0.011192]
[1769556247215,0.00258838,89468.0,89450.0,0.10072]
[1769556247519,0.011188,89488.0,89462.0,0.011191]
[1769556247722,0.00086282,89474.0,89464.0,0.011191]
[1769556248016,0.10072,89473.0,89465.0,0.00258838]
[1769556248221,0.00086282,89472.0,89461.0,0.011191]
[1769556248420,0.10072,89471.0,89462.0,0.00258838]
[1769556248622,0.00086282,89470.0,89462.0,0.00258838]
[1769556249216,0.10158282,89470.0,89462.0,0.00258838]
[1769556253828,0.00086282,89470.0,89462.0,0.00258838]
[1769556257336,0.02201361,89470.0,89462.0,0.00258838]
[1769556257538,0.01082361,89470.0,89457.0,0.011192]
[1769556257740,0.01082361,89470.0,89457.0,0.02211206]
[1769556257931,0.01082361,89470.0,89458.0,0.00833168]
[1769556258134,0.01082361,89470.0,89459.0,0.00258838]
[1769556258331,0.01082361,89470.0,89459.0,0.01092006]
[1769556261932,0.01082361,89470.0,89459.0,0.00258838]
[1769556265731,0.00904378,89448.0,89440.0,0.08900723]
[1769556265939,0.0099066,89448.0,89440.0,0.00258838]
[1769556266137,0.00904378,89447.0,89437.0,0.08900723]
[1769556266338,0.00904378,89445.0,89436.0,0.08900723]
[1769556266542,0.0099066,89445.0,89437.0,0.00258838]
[1769556267442,0.0099066,89445.0,89434.0,0.08900723]
[1769556267644,0.0099066,89445.0,89433.0,0.08900723]
[1769556268232,0.0099066,89445.0,89429.0,0.01378338]
[1769556268233,0.0099066,89445.0,89432.0,0.08900723]
[1769556268443,0.0099066,89445.0,89433.0,0.24278746]
[1769556268649,0.0099066,89445.0,89432.0,0.09159561]
[1769556271351,0.0099066,89445.0,89432.0,0.00258838]
[1769556271945,0.00904378,89444.0,89431.0,0.08900723]
[1769556272249,0.00904378,89442.0,89432.0,0.00258838]
[1769556272447,0.0099066,89441.0,89431.0,0.08900723]
[1769556272749,0.02023778,89440.0,89431.0,0.08900723]
[1769556273038,0.0099066,89439.0,89431.0,0.08900723]
[1769556273451,0.00319431,89466.0,89444.0,0.00291351]
[1769556273637,0.39634282,89465.0,89453.0,0.00876298]
[1769556273843,0.39548,89464.0,89455.0,0.00876298]
[1769556274040,0.011191,89469.0,89456.0,0.00258838]
[1769556274240,0.42402282,89468.0,89456.0,0.00258838]
[1769556275042,0.42402282,89468.0,89450.0,0.00872446]
[1769556275043,0.011191,89467.0,89450.0,0.00872446]
[1769556275347,0.00086282,89466.0,89452.0,0.00872446]
[1769556275544,0.0099066,89466.0,89453.0,0.00258838]
[1769556280650,0.0099066,89466.0,89453.0,0.02241025]
[1769556280947,0.0099066,89466.0,89454.0,0.00852557]
[1769556281148,0.0099066,89466.0,89455.0,0.00258838]
[1769556281348,0.00086282,89466.0,89456.0,0.00852557]
[1769556281549,0.00086282,89466.0,89457.0,0.00258838]
[1769556283853,0.42476,89465.0,89457.0,0.00258838]
[1769556284649,0.42562282,89465.0,89457.0,0.00258838]
[1769556284848,0.32416,89464.0,89457.0,0.00258838]
[1769556285158,0.10072,89463.0,89457.0,0.00258838]
[1769556285636,0.10158282,89463.0,89456.0,0.00852557]
[1769556285839,0.10158282,89463.0,89450.0,0.00851083]
[1769556286035,0.10158282,89463.0,89451.0,0.00851083]
[1769556286246,0.10158282,89463.0,89452.0,0.00258838]
[1769556286448,0.00904378,89459.0,89449.0,0.0892783]
[1769556286647,0.00904378,89457.0,89449.0,0.00258838]
[1769556286848,0.32448,89456.0,89449.0,0.00258838]
[1769556287043,0.32448,89455.0,89449.0,0.01081579]
[1769556290051,0.32448,89455.0,89449.0,0.00258838]
[1769556291240,0.32448,89455.0,89450.0,0.011193]
[1769556291454,0.32448,89455.0,89451.0,0.00258838]
[1769556292851,0.00086282,89452.0,89443.0,0.0692783]
[1769556293056,0.00086282,89452.0,89443.0,0.02070578]
[1769556293360,0.00086282,89452.0,89444.0,0.00951178]
[1769556293556,0.32448,89455.0,89444.0,0.00951178]
[1769556293752,0.00258838,89454.0,89444.0,0.00951178]
[1769556294459,0.00258838,89454.0,89444.0,0.02070578]
[1769556294661,0.00258838,89454.0,89444.0,0.00951178]
[1769556296261,0.32448,89455.0,89447.0,0.011193]
[1769556296651,0.32448,89455.0,89447.0,0.02098986]
[1769556296852,0.32448,89455.0,89448.0,0.00979686]
[1769556298262,0.32448,89455.0,89449.0,0.011193]
[1769556298562,0.32448,89455.0,89448.0,0.00979686]